bitfinex/quotes_SOLUSD_20230116
["timestamp","ask_amount","ask_price","bid_price","bid_amount"]
[1673912905102,10.0,23.664,23.648,114.9387]
[1673912905305,56.57,23.663,23.644,31.74]
[1673912905518,16.23,23.66,23.639,31.75]
[1673912905727,16.23,23.66,23.638,31.75]
[1673912905728,10.0,23.658,23.638,31.75]
[1673912905946,19.57,23.657,23.638,31.75]
[1673912906160,19.57,23.657,23.639,20.0]
[1673912906483,17.0,23.656,23.639,20.0]
[1673912906673,10.0,23.654,23.639,20.0]
[1673912907415,10.0,23.654,23.638,31.75]
[1673912908794,10.0,23.652,23.638,31.75]
[1673912908986,20.0,23.651,23.639,17.0]
[1673912909324,10.0,23.65,23.638,17.0]
[1673912914782,20.0,23.651,23.638,17.0]
[1673912914994,20.0,23.651,23.639,10.0]
[1673912915618,10.0,23.65,23.638,17.0]
[1673912917625,39.56,23.651,23.639,10.0]
[1673912918873,20.0,23.651,23.64,17.0]
[1673912919078,20.0,23.653,23.64,17.0]
[1673912920237,20.0,23.653,23.638,10.0]
[1673912920238,20.0,23.653,23.639,17.0]
[1673912920658,20.0,23.653,23.64,10.0]
[1673912922131,20.0,23.653,23.639,17.0]
[1673912922354,19.56,23.652,23.639,17.0]
[1673912922582,10.0,23.651,23.638,17.0]
[1673912922764,20.0,23.65,23.638,17.0]
[1673912923179,20.0,23.65,23.639,10.0]
[1673912923391,20.0,23.652,23.639,10.0]
[1673912924882,20.0,23.652,23.64,17.0]
[1673912925402,19.56,23.651,23.64,17.0]
[1673912925590,20.0,23.65,23.64,17.0]
[1673912925804,20.0,23.652,23.64,17.0]
[1673912926768,20.0,23.652,23.637,119.5157]
[1673912927286,16.23,23.65,23.629,31.76]
[1673912927509,10.0,23.648,23.627,31.77]
[1673912927691,174.3027,23.647,23.627,31.77]
[1673912927904,174.3027,23.647,23.625,31.77]
[1673912928330,10.0,23.646,23.625,31.77]
[1673912928559,10.0,23.644,23.625,31.77]
[1673912928759,10.0,23.642,23.627,10.0]
[1673912928972,20.0,23.641,23.628,17.0]
[1673912929397,20.0,23.641,23.626,17.0]
[1673912929724,20.0,23.641,23.627,31.77]
[1673912929938,20.0,23.641,23.628,17.0]
[1673912930357,20.0,23.641,23.626,17.0]
[1673912930555,20.0,23.641,23.628,10.0]
[1673912930763,20.0,23.641,23.629,17.0]
[1673912932864,20.0,23.641,23.626,10.0]
[1673912933313,20.0,23.641,23.627,31.77]
[1673912933497,20.0,23.641,23.628,10.0]
[1673912934332,19.56,23.645,23.629,17.0]
[1673912934549,117.7327,23.647,23.63,10.0]
[1673912934753,117.7327,23.647,23.631,48.76]
[1673912934970,10.0,23.646,23.631,48.76]
[1673912935821,10.0,23.646,23.631,17.0]
[1673912936760,29.56,23.646,23.629,31.76]
[1673912936971,37.0,23.645,23.624,31.77]
[1673912937185,19.56,23.644,23.624,31.77]
[1673912937394,27.0,23.643,23.624,31.77]
[1673912937606,39.56,23.642,23.624,31.77]
[1673912937925,10.0,23.641,23.624,31.77]
[1673912938147,20.0,23.64,23.625,17.0]
[1673912938460,10.0,23.639,23.625,17.0]
[1673912938997,10.0,23.639,23.624,17.0]
[1673912940988,39.56,23.64,23.624,17.0]
[1673912941180,10.0,23.639,23.624,17.0]
[1673912941913,10.0,23.639,23.623,109.8147]
[1673912942349,10.0,23.637,23.623,109.8147]
[1673912949693,10.0,23.637,23.62,31.77]
[1673912949895,10.0,23.635,23.618,31.78]
[1673912950114,10.0,23.635,23.619,20.0]
[1673912950320,10.0,23.635,23.621,10.0]
[1673912950525,10.0,23.635,23.622,31.77]
[1673912950735,10.0,23.635,23.62,31.77]
[1673912952669,10.0,23.635,23.621,10.0]
[1673912952875,10.0,23.635,23.622,31.77]
[1673912953393,10.0,23.635,23.621,31.77]
[1673912953927,30.0,23.64,23.623,10.0]
[1673912954121,30.0,23.64,23.623,41.77]
[1673912954539,30.0,23.64,23.623,31.77]
[1673912954755,10.0,23.639,23.622,10.0]
[1673912955179,17.0,23.638,23.623,31.77]
[1673912955506,10.0,23.639,23.623,31.77]
[1673912956640,10.0,23.639,23.625,10.0]
[1673912956851,10.0,23.639,23.625,31.77]
[1673912957061,17.0,23.638,23.623,31.77]
[1673912957289,10.0,23.637,23.622,10.0]
[1673912957801,12.14,23.63,23.6,12.3]
[1673912958013,10.0,23.629,23.611,10.0]
[1673912958222,36.57,23.628,23.611,10.0]
[1673912958432,10.0,23.627,23.611,10.0]
[1673912958763,10.0,23.627,23.611,41.79]
[1673912960745,10.0,23.627,23.611,31.79]
[1673912962441,12.14,23.63,23.613,10.0]
[1673912962647,12.22,23.63,23.614,31.78]
[1673912962862,19.56,23.629,23.611,31.79]
[1673912963073,10.0,23.628,23.611,31.79]
[1673912963914,10.0,23.626,23.611,31.79]
[1673912965265,10.0,23.624,23.61,117.7866]
[1673912965692,20.0,23.623,23.609,31.79]
[1673912965901,10.0,23.621,23.602,31.8]
[1673912966116,10.0,23.621,23.602,150.1009]
[1673912966117,20.0,23.62,23.602,150.1009]
[1673912966331,10.0,23.619,23.602,150.1009]
[1673912967154,10.0,23.619,23.603,17.0]
[1673912967486,10.0,23.619,23.604,31.8]
[1673912968096,10.0,23.619,23.605,17.0]
[1673912968322,20.0,23.62,23.606,31.79]
[1673912968531,20.0,23.62,23.607,17.0]
[1673912968745,20.0,23.62,23.608,31.79]
[1673912968961,20.0,23.62,23.609,17.0]
[1673912969367,20.0,23.62,23.607,17.0]
[1673912969595,20.0,23.62,23.608,31.79]
[1673912969798,20.0,23.62,23.608,10.0]
[1673912970011,20.0,23.62,23.609,31.79]
[1673912970202,17.0,23.619,23.609,31.79]
[1673912970414,10.0,23.618,23.604,41.8]
[1673912972016,10.0,23.618,23.604,31.8]
[1673912972534,10.0,23.618,23.603,31.8]
[1673912975564,10.0,23.616,23.6,0.07]
[1673912975775,39.57,23.615,23.6,0.07]
[1673912975989,10.0,23.614,23.6,0.07]
[1673912976194,39.57,23.613,23.6,0.07]
[1673912976410,10.0,23.609,23.6,0.07]
[1673912979144,111.7159,23.608,23.6,0.07]
[1673912979475,10.0,23.607,23.6,0.07]
[1673912980401,10.0,23.605,23.6,0.07]
[1673912981592,10.0,23.603,23.6,0.07]
[1673912982319,17.0,23.602,23.6,0.07]
[1673912982531,17.0,23.602,23.588,31.82]
[1673912982731,12.22,23.6,23.583,31.82]
[1673912982955,10.0,23.599,23.583,31.82]
[1673912984724,17.0,23.598,23.578,31.83]
[1673912984935,22.22,23.6,23.578,31.83]
[1673912984936,12.22,23.6,23.579,10.0]
[1673912985161,111.7159,23.608,23.586,31.82]
[1673912985353,111.7159,23.608,23.59,12.12]
[1673912985563,111.7159,23.608,23.591,31.81]
[1673912985778,10.0,23.607,23.589,10.0]
[1673912985995,10.0,23.607,23.59,48.81]
[1673912986206,10.0,23.607,23.591,10.0]
[1673912986416,10.0,23.607,23.592,31.81]
[1673912986625,10.0,23.607,23.593,10.0]
[1673912987159,111.7159,23.608,23.593,10.0]
[1673912987357,10.0,23.607,23.594,31.81]
[1673912987897,111.7159,23.608,23.594,31.81]
[1673912988507,111.7159,23.608,23.595,10.0]
[1673912988730,29.57,23.607,23.59,152.8511]
[1673912988945,29.57,23.607,23.59,140.7411]
[1673912989354,29.57,23.607,23.591,10.0]
[1673912989577,10.0,23.607,23.591,10.0]
[1673912990195,111.7159,23.608,23.592,17.0]
[1673912990416,111.7159,23.608,23.594,10.0]
[1673912991153,10.0,23.607,23.594,10.0]
[1673912991996,111.7159,23.608,23.594,10.0]
[1673912992208,10.0,23.607,23.593,31.81]
[1673912992423,10.0,23.607,23.59,140.7411]
[1673912992744,10.0,23.605,23.59,108.9311]
[1673912993470,10.0,23.605,23.591,10.0]
[1673912994818,17.0,23.604,23.59,140.7411]
[1673912995039,10.0,23.602,23.59,108.9311]
[1673912995242,20.0,23.601,23.59,108.9311]
[1673912996200,20.0,23.601,23.587,31.82]
[1673912996419,10.0,23.6,23.587,31.82]
[1673912996615,10.0,23.6,23.586,31.82]
[1673912997153,10.0,23.6,23.586,10.0]
[1673912997360,20.0,23.601,23.586,10.0]
[1673912997573,20.0,23.601,23.587,31.82]
[1673912997890,20.0,23.601,23.588,10.0]
[1673912998509,20.0,23.601,23.586,41.82]
[1673912998723,10.0,23.6,23.586,41.82]
[1673912999553,10.0,23.6,23.586,31.82]
[1673912999765,10.0,23.6,23.585,9.7034341]
[1673912999975,20.0,23.601,23.586,10.0]
[1673913000306,20.0,23.601,23.586,41.82]
[1673913001123,20.0,23.601,23.586,31.82]
[1673913001339,10.0,23.6,23.585,9.7034341]
[1673913002497,20.0,23.601,23.586,41.82]
[1673913002720,20.0,23.601,23.587,17.0]
[1673913003032,20.0,23.601,23.588,31.82]
[1673913003349,20.0,23.601,23.589,17.0]
[1673913003576,19.56,23.607,23.589,17.0]
[1673913003745,19.56,23.607,23.59,41.81]
[1673913003966,19.56,23.609,23.591,17.0]
[1673913004175,10.0,23.61,23.592,31.81]
[1673913004392,10.0,23.61,23.593,17.0]
[1673913004588,10.0,23.61,23.594,31.81]
[1673913004589,10.0,23.607,23.594,31.81]
[1673913004793,10.0,23.607,23.587,31.82]
[1673913005025,10.0,23.607,23.588,37.0]
[1673913005339,10.0,23.607,23.589,31.82]
[1673913005550,10.0,23.607,23.585,9.7034341]
[1673913005551,38.46196354,23.606,23.586,31.82]
[1673913005741,29.56,23.605,23.586,31.82]
[1673913005952,10.0,23.603,23.585,9.7034341]
[1673913006179,36.57,23.602,23.585,9.7034341]
[1673913006580,10.0,23.599,23.585,9.7034341]
[1673913006793,37.0,23.598,23.585,9.7034341]
[1673913007002,10.0,23.596,23.57,31.84]
[1673913007229,16.27,23.59,23.564,118.55]
[1673913007468,36.57,23.589,23.565,31.85]
[1673913007650,10.0,23.587,23.564,118.55]
[1673913007861,39.57,23.586,23.565,31.85]
[1673913008280,17.0,23.589,23.565,31.85]
[1673913008281,19.57,23.594,23.566,10.0]
[1673913008503,10.0,23.599,23.567,31.85]
[1673913008504,20.0,23.593,23.567,31.85]
[1673913008721,29.57,23.592,23.568,10.0]
[1673913009043,20.0,23.591,23.569,31.84]
[1673913009354,45.76,23.59,23.569,31.84]
[1673913009567,10.0,23.589,23.565,31.85]
[1673913009878,56.56,23.588,23.565,31.85]
[1673913010085,10.0,23.587,23.565,31.85]
[1673913010295,56.56,23.586,23.565,31.85]
[1673913010510,10.0,23.585,23.565,31.85]
[1673913010721,10.0,23.583,23.564,118.55]
[1673913010934,56.57,23.582,23.564,118.55]
[1673913011244,39.57,23.582,23.564,118.55]
[1673913011439,27.0,23.581,23.564,118.55]
[1673913013430,27.0,23.581,23.56,31.86]
[1673913013659,10.0,23.58,23.558,144.4867]
[1673913013971,10.0,23.578,23.559,30.0]
[1673913014188,17.0,23.577,23.56,31.86]
[1673913014495,10.0,23.58,23.561,10.0]
[1673913014693,10.0,23.58,23.562,31.85]
[1673913014903,10.0,23.58,23.564,10.0]
[1673913015121,10.0,23.58,23.564,41.85]
[1673913015333,10.0,23.58,23.565,17.0]
[1673913016079,10.0,23.58,23.564,41.85]
[1673913016274,10.0,23.58,23.565,17.0]
[1673913016490,10.0,23.581,23.564,41.85]
[1673913016696,10.0,23.581,23.564,31.85]
[1673913017024,10.0,23.581,23.565,17.0]
[1673913017222,10.0,23.581,23.564,48.85]
[1673913020056,10.0,23.579,23.564,31.85]
[1673913020266,10.0,23.577,23.561,31.85]
[1673913020685,10.0,23.579,23.562,10.0]
[1673913020889,10.0,23.579,23.564,10.0]
[1673913021093,10.0,23.579,23.565,31.85]
[1673913021308,10.0,23.579,23.564,10.0]
[1673913022168,10.0,23.579,23.563,31.85]
[1673913022572,10.0,23.58,23.564,10.0]
[1673913023103,10.0,23.58,23.565,31.85]
[1673913024460,10.0,23.58,23.564,10.0]
[1673913024687,10.0,23.58,23.565,17.0]
[1673913024886,10.0,23.58,23.564,10.0]
[1673913025103,10.0,23.58,23.565,31.85]
[1673913025634,10.0,23.58,23.564,10.0]
[1673913026480,10.0,23.58,23.563,31.85]
[1673913026668,10.0,23.578,23.561,31.85]
[1673913026874,10.0,23.578,23.562,10.0]
[1673913027080,31.46196354,23.578,23.563,31.85]
[1673913027303,31.46196354,23.578,23.561,31.85]
[1673913027304,10.0,23.576,23.561,31.85]
[1673913028265,10.0,23.578,23.562,10.0]
[1673913028454,45.9,23.58,23.562,10.0]
[1673913028671,17.0,23.579,23.562,10.0]
[1673913029082,17.0,23.579,23.561,31.85]
[1673913029293,21.46196354,23.579,23.562,10.0]
[1673913029519,114.4093,23.582,23.563,31.85]
[1673913029731,114.4093,23.582,23.565,10.0]
[1673913029952,26.34,23.59,23.566,31.85]
[1673913030140,10.0,23.587,23.568,10.0]
[1673913030350,10.0,23.587,23.569,68.84]
[1673913030781,10.0,23.587,23.57,10.0]
[1673913031210,10.0,23.587,23.569,68.84]
[1673913031397,10.0,23.587,23.569,37.0]
[1673913032043,10.0,23.585,23.569,17.0]
[1673913032457,10.0,23.585,23.57,41.84]
[1673913032665,10.0,23.587,23.571,17.0]
[1673913032874,10.0,23.587,23.572,31.84]
[1673913033079,10.0,23.587,23.571,31.84]
[1673913033412,10.0,23.587,23.568,31.84]
[1673913033646,10.0,23.587,23.569,37.0]
[1673913033833,10.0,23.587,23.57,31.84]
[1673913034042,10.0,23.585,23.57,31.84]
[1673913034250,17.0,23.584,23.568,31.84]
[1673913034470,17.0,23.584,23.569,20.0]
[1673913034681,10.0,23.585,23.569,20.0]
[1673913035947,10.0,23.585,23.568,31.84]
[1673913036152,37.0,23.584,23.568,31.84]
[1673913036369,27.0,23.583,23.568,31.84]
[1673913036787,20.0,23.582,23.567,119.7414]
[1673913037110,10.0,23.581,23.567,119.7414]
[1673913037523,10.0,23.581,23.561,31.85]
[1673913037722,55.78,23.58,23.558,31.86]
[1673913037931,72.78,23.58,23.558,31.86]
[1673913038263,19.57,23.58,23.559,10.0]
[1673913038469,119.6104,23.582,23.56,31.86]
[1673913038677,20.0,23.581,23.56,67.48417469]
[1673913039003,20.0,23.581,23.561,36.28417469]
[1673913039203,20.0,23.581,23.563,10.0]
[1673913039417,20.0,23.581,23.564,48.85]
[1673913040154,20.0,23.581,23.565,10.0]
[1673913040364,20.0,23.581,23.566,48.85]
[1673913040895,19.56,23.587,23.567,20.0]
[1673913041107,10.0,23.587,23.569,10.0]
[1673913041621,10.0,23.587,23.57,17.0]
[1673913041832,10.0,23.587,23.568,31.84]
[1673913041833,10.0,23.587,23.569,17.0]
[1673913042256,10.0,23.587,23.568,31.84]
[1673913042452,10.0,23.587,23.569,20.0]
[1673913042662,31.46196354,23.587,23.57,31.84]
[1673913043287,31.46196354,23.587,23.566,31.85]
[1673913043493,31.46196354,23.587,23.568,10.0]
[1673913043724,19.56,23.588,23.57,10.0]
[1673913043964,10.0,23.589,23.571,48.84]
[1673913044278,10.0,23.589,23.572,10.0]
[1673913044459,10.0,23.589,23.573,48.84]
[1673913044887,150.0,23.582,23.573,48.84]
[1673913045098,150.0,23.582,23.573,17.0]
[1673913045324,150.0,23.582,23.572,17.0]
[1673913045639,150.0,23.582,23.573,31.84]
[1673913045845,150.0,23.582,23.574,17.0]
[1673913046483,150.0,23.582,23.572,17.0]
[1673913046680,150.0,23.582,23.573,31.84]
[1673913046894,150.0,23.582,23.574,17.0]
[1673913047324,150.0,23.582,23.572,17.0]
[1673913047536,150.0,23.582,23.573,31.84]
[1673913047750,150.0,23.582,23.574,17.0]
[1673913048358,150.0,23.582,23.572,17.0]
[1673913048793,150.0,23.582,23.573,31.84]
[1673913049003,150.0,23.582,23.574,17.0]
[1673913049215,150.0,23.582,23.575,10.0]
[1673913049523,150.0,23.582,23.577,10.0]
[1673913049724,150.0,23.582,23.578,17.0]
[1673913050577,150.0,23.582,23.577,10.0]
[1673913050899,150.0,23.582,23.573,31.84]
[1673913051084,150.0,23.582,23.57,16.34]
[1673913051085,10.0,23.581,23.57,16.34]
[1673913051299,10.0,23.581,23.565,41.85]
[1673913051620,10.0,23.581,23.566,20.0]
[1673913051836,10.0,23.581,23.565,41.85]
[1673913052035,29.57,23.581,23.565,10.0]
[1673913052580,10.0,23.581,23.565,10.0]
[1673913054358,10.0,23.581,23.566,31.85]
[1673913054577,10.0,23.581,23.565,41.85]
[1673913055104,10.0,23.581,23.566,17.0]
[1673913056149,10.0,23.581,23.567,10.0]
[1673913056367,10.0,23.581,23.568,17.0]
[1673913057103,10.0,23.581,23.567,17.0]
[1673913058476,264.8271,23.582,23.568,10.0]
[1673913058688,20.0,23.581,23.569,17.0]
[1673913059097,150.0,23.582,23.57,10.0]
[1673913059314,150.0,23.582,23.571,31.84]
[1673913059524,150.0,23.582,23.571,48.84]
[1673913059739,150.0,23.582,23.572,10.0]
[1673913059934,150.0,23.582,23.574,10.0]
[1673913060159,150.0,23.582,23.575,17.0]
[1673913061534,150.0,23.582,23.576,10.0]
[1673913061738,150.0,23.582,23.577,17.0]
[1673913063317,150.0,23.582,23.578,10.0]
[1673913063514,150.0,23.582,23.579,17.0]
[1673913064681,150.0,23.582,23.577,17.0]
[1673913064891,150.0,23.582,23.575,17.0]
[1673913067938,10.0,23.581,23.575,17.0]
[1673913068353,10.0,23.581,23.574,17.0]
[1673913068563,10.0,23.581,23.573,17.0]
[1673913068773,10.0,23.581,23.572,17.0]
[1673913070241,150.0,23.582,23.572,17.0]
[1673913070873,10.0,23.581,23.572,17.0]
[1673913074891,10.0,23.581,23.568,10.0]
[1673913075104,10.0,23.581,23.569,37.0]
[1673913075944,150.0,23.582,23.57,41.84]
[1673913076135,150.0,23.582,23.571,17.0]
[1673913076781,10.0,23.581,23.571,17.0]
[1673913077204,10.0,23.581,23.569,20.0]
[1673913077415,10.0,23.581,23.57,17.0]
[1673913078333,10.0,23.581,23.569,20.0]
[1673913078775,10.0,23.581,23.567,10.0]
[1673913078989,29.56,23.581,23.567,41.85]
[1673913079196,29.56,23.581,23.568,20.0]
[1673913079389,10.0,23.581,23.568,20.0]
[1673913080668,10.0,23.581,23.563,122.7348]
[1673913080879,150.0,23.57,23.563,122.7348]
[1673913081090,150.0,23.57,23.562,41.85]
[1673913082986,150.0,23.57,23.564,10.0]
[1673913083192,149.5,23.57,23.565,17.0]
[1673913083817,10.0,23.569,23.56,12.16]
[1673913084453,149.5,23.57,23.56,12.16]
[1673913084649,149.5,23.57,23.561,10.0]
[1673913085591,10.0,23.569,23.56,44.02]
[1673913085808,10.0,23.569,23.558,31.86]
[1673913086020,10.0,23.569,23.559,37.0]
[1673913086242,10.0,23.569,23.56,31.86]
[1673913086447,10.0,23.569,23.559,37.0]
[1673913086657,10.0,23.569,23.559,20.0]
[1673913087077,10.0,23.569,23.558,20.0]
[1673913087297,149.5,23.57,23.559,10.0]
[1673913087517,149.5,23.57,23.56,31.86]
[1673913087728,149.5,23.57,23.559,58.86]
[1673913089387,149.5,23.57,23.559,41.86]
[1673913090231,10.0,23.569,23.556,31.86]
[1673913090437,10.0,23.569,23.555,10.0]
[1673913090768,10.0,23.569,23.556,31.86]
[1673913092449,10.0,23.569,23.557,10.0]
[1673913092650,149.5,23.57,23.557,10.0]
[1673913092863,10.0,23.569,23.557,10.0]
[1673913093067,149.5,23.57,23.557,10.0]
[1673913093399,149.5,23.57,23.559,10.0]
[1673913096133,149.5,23.57,23.561,10.0]
[1673913096569,149.5,23.57,23.562,17.0]
[1673913096951,19.56,23.578,23.56,31.86]
[1673913097166,31.83,23.576,23.557,31.86]
[1673913097377,10.0,23.575,23.558,10.0]
[1673913098871,10.0,23.575,23.558,9.5]
[1673913100428,10.0,23.575,23.557,31.86]
[1673913100647,10.0,23.573,23.557,31.86]
[1673913101167,10.0,23.573,23.556,10.0]
[1673913102846,19.56,23.574,23.556,10.0]
[1673913103056,20.0,23.573,23.555,31.86]
[1673913103360,20.0,23.573,23.556,17.0]
[1673913103681,20.0,23.573,23.556,10.0]
[1673913104515,10.0,23.572,23.556,10.0]
[1673913106414,20.0,23.573,23.556,10.0]
[1673913106835,10.0,23.572,23.556,10.0]
[1673913107998,10.0,23.572,23.555,48.86]
[1673913108215,10.0,23.572,23.555,17.0]
[1673913108403,31.84,23.571,23.552,10.0]
[1673913108614,31.84,23.571,23.551,10.0]
[1673913109389,60.75196354,23.57,23.548,0.54166397]
[1673913109580,31.84,23.569,23.548,0.54166397]
[1673913109791,10.0,23.567,23.548,0.54166397]
[1673913109994,10.0,23.565,23.548,0.54166397]
[1673913110209,31.85,23.564,23.548,0.54166397]
[1673913110420,10.0,23.563,23.548,0.54166397]
[1673913112645,10.0,23.563,23.548,10.0]
[1673913114330,31.85,23.564,23.548,10.0]
[1673913114643,10.0,23.565,23.548,10.0]
[1673913114952,10.0,23.565,23.549,17.0]
[1673913115793,10.0,23.565,23.55,10.0]
[1673913115993,10.0,23.567,23.551,17.0]
[1673913116225,10.0,23.567,23.552,10.0]
[1673913116404,10.0,23.567,23.553,17.0]
[1673913118409,10.0,23.567,23.551,10.0]
[1673913118619,10.0,23.567,23.549,31.87]
[1673913118941,10.0,23.567,23.55,17.0]
[1673913119153,10.0,23.567,23.549,17.0]
[1673913119364,10.0,23.567,23.55,10.0]
[1673913119575,10.0,23.567,23.552,10.0]
[1673913119991,10.0,23.567,23.553,17.0]
[1673913121868,10.0,23.567,23.552,17.0]
[1673913122730,10.0,23.567,23.553,10.0]
[1673913122919,10.0,23.567,23.554,17.0]
[1673913124412,10.0,23.568,23.554,17.0]
[1673913125347,31.85,23.567,23.545,31.88]
[1673913125669,10.0,23.565,23.545,31.88]
[1673913125860,10.0,23.563,23.546,20.0]
[1673913126074,10.0,23.561,23.546,20.0]
[1673913126616,10.0,23.561,23.546,10.0]
[1673913126815,10.0,23.561,23.547,20.0]
[1673913127752,10.0,23.561,23.544,41.88]
[1673913127968,10.0,23.561,23.544,10.0]
[1673913131135,31.85,23.562,23.544,10.0]
[1673913131323,10.0,23.561,23.544,10.0]
[1673913131544,31.86,23.56,23.544,10.0]
[1673913132498,31.85,23.564,23.545,36.28758681]
[1673913132710,31.84,23.568,23.546,51.87]
[1673913132923,31.84,23.568,23.548,10.0]
[1673913133125,31.84,23.568,23.55,10.0]
[1673913133455,10.0,23.566,23.55,10.0]
[1673913134797,10.0,23.566,23.548,41.87]
[1673913135130,41.85,23.566,23.548,10.0]
[1673913137330,30.0,23.565,23.546,10.0]
[1673913137545,31.85,23.564,23.544,10.0]
[1673913137729,20.0,23.563,23.543,115.1933]
[1673913137945,31.85,23.562,23.543,115.1933]
[1673913138173,10.0,23.561,23.543,115.1933]
[1673913138392,31.86,23.56,23.543,115.1933]
[1673913138792,10.0,23.559,23.543,115.1933]
[1673913139118,10.0,23.557,23.541,117.9249]
[1673913139329,31.86,23.556,23.541,117.9249]
[1673913139519,10.0,23.555,23.541,117.9249]
[1673913140149,10.0,23.555,23.535,31.89]
[1673913140363,10.0,23.555,23.536,20.0]
[1673913140905,10.0,23.553,23.535,51.89]
[1673913141218,10.0,23.553,23.535,50.39]
[1673913141634,10.0,23.553,23.534,31.89]
[1673913141848,31.87,23.552,23.533,146.4123]
[1673913142056,10.0,23.551,23.534,10.0]
[1673913142468,10.0,23.551,23.533,146.4123]
[1673913142689,10.0,23.549,23.533,114.5223]
[1673913143114,10.0,23.549,23.534,10.0]
[1673913146873,150.0,23.55,23.534,10.0]
[1673913147308,10.0,23.549,23.534,10.0]
[1673913150786,150.0,23.55,23.534,10.0]
[1673913150977,150.0,23.55,23.536,10.0]
[1673913151187,150.0,23.55,23.537,37.0]
[1673913151393,150.0,23.55,23.538,10.0]
[1673913151629,150.0,23.55,23.54,10.0]
[1673913154359,150.0,23.55,23.538,10.0]
[1673913154780,150.0,23.55,23.534,10.0]
[1673913154985,10.0,23.548,23.534,10.0]
[1673913156656,41.87,23.549,23.534,10.0]
[1673913156878,31.87,23.549,23.534,10.0]
[1673913158249,150.0,23.54,23.534,10.0]
[1673913160864,150.0,23.54,23.536,10.0]
[1673913161075,150.0,23.54,23.537,17.0]
[1673913161391,122.0183,23.555,23.537,17.0]
[1673913161392,31.86,23.558,23.539,10.0]